fUSD/lending_fUSD_20260116
["ID","MTS","AMOUNT","RATE_DAILY","PERIOD"]
[402192193,1768582239016,-829.46912233,0.0001616,2]
[402192195,1768582239026,-829.46912233,0.0001616,2]
[402192197,1768582239036,-829.46912233,0.0001616,2]
[402192199,1768582239047,-829.46912233,0.0001616,2]
[402192201,1768582239057,-829.46912233,0.0001616,2]
[402192203,1768582239067,-829.46912233,0.0001616,2]
[402192205,1768582239077,-829.46912233,0.0001616,2]
[402192207,1768582239087,-829.46912233,0.0001616,2]
[402192209,1768582239097,-829.46912233,0.0001616,2]
[402192211,1768582239108,-829.46912233,0.0001616,2]
[402192212,1768582239118,-829.46912233,0.0001616,2]
[402192213,1768582239128,-829.46912233,0.0001616,2]
[402192214,1768582239138,-829.46912233,0.0001616,2]
[402192215,1768582239149,-829.46912233,0.0001616,2]
[402192216,1768582239158,-829.46912233,0.0001616,2]
[402192217,1768582239168,-829.46912233,0.0001616,2]
[402192218,1768582239178,-829.46912233,0.0001616,2]
[402192219,1768582239188,-829.46912233,0.0001616,2]
[402192220,1768582239198,-829.46912233,0.0001616,2]
[402192221,1768582239208,-829.46912233,0.0001616,2]
[402192222,1768582239218,-829.46912233,0.0001616,2]
[402192223,1768582239227,-829.46912233,0.0001616,2]
[402192224,1768582239236,-829.46912233,0.0001616,2]
[402192225,1768582239246,-829.46912233,0.0001616,2]
[402192226,1768582239256,-500.0,0.0001616,2]
[402192227,1768582239265,-500.0,0.0001616,2]
[402192228,1768582239275,-500.0,0.0001616,2]
[402192229,1768582239285,-467.93845298,0.0001616,2]
[402192230,1768582239294,-798.13362216,0.0001616,2]
[402192231,1768582239304,-798.13362216,0.0001616,2]
[402192232,1768582239314,-798.13362216,0.0001616,2]
[402192233,1768582239323,-798.13362216,0.0001616,2]
[402192234,1768582239333,-798.13362216,0.0001616,2]
[402192235,1768582239343,-798.13362216,0.0001616,2]
[402192236,1768582239352,-798.13362216,0.0001616,2]
[402192237,1768582239361,-798.13362216,0.0001616,2]
[402192238,1768582239371,-798.13362216,0.0001616,2]
[402192239,1768582239380,-798.13362216,0.0001616,2]
[402192240,1768582239390,-798.13362216,0.0001616,2]
[402192241,1768582239400,-798.13362216,0.0001616,2]
[402192242,1768582239411,-798.13362216,0.0001616,2]
[402192243,1768582239420,-798.13362216,0.0001616,2]
[402192244,1768582239430,-798.13362213,0.0001616,2]
[402192245,1768582239439,-500.0,0.0001616,2]
[402192246,1768582239450,-500.0,0.00016161,2]
[402192247,1768582239459,-500.0,0.00016161,2]
[402192248,1768582239468,-500.0,0.00016161,2]
[402192249,1768582239479,-500.0,0.00016161,2]
[402192250,1768582239489,-500.0,0.00016161,2]
[402192251,1768582239499,-500.0,0.00016161,2]
[402192252,1768582239509,-500.0,0.00016161,2]
[402192253,1768582239518,-500.0,0.00016161,2]
[402192254,1768582239527,-500.0,0.00016161,2]
[402192255,1768582239537,-500.0,0.00016161,2]
[402192256,1768582239547,-500.0,0.00016161,2]
[402192257,1768582239556,-500.0,0.00016161,2]
[402192258,1768582239566,-500.0,0.00016161,2]
[402192259,1768582239575,-500.0,0.00016161,2]
[402192260,1768582239584,-500.0,0.00016161,2]
[402192261,1768582239593,-500.0,0.00016161,2]
[402192262,1768582239603,-500.0,0.00016161,2]
[402192263,1768582239612,-500.0,0.00016161,2]
[402192264,1768582239622,-500.0,0.00016161,2]
[402192265,1768582239631,-500.0,0.00016161,2]
[402192266,1768582239640,-500.0,0.00016161,2]
[402192267,1768582239650,-500.0,0.00016161,2]
[402192268,1768582239660,-500.0,0.00016161,2]
[402192269,1768582239669,-500.0,0.00016161,2]
[402192270,1768582239678,-500.0,0.00016161,2]
[402192271,1768582239687,-500.0,0.00016161,2]
[402192272,1768582239696,-2500.0,0.00016161,2]
[402192273,1768582239706,-3023.81,0.00016199,2]
[402192274,1768582239715,-19445.06014786,0.0001622,2]
[402192275,1768582239725,-33212.9972,0.00016261,2]
[402192276,1768582239734,-2426.166,0.00016261,2]
[402192277,1768582239744,-42622.38024876,0.00016301,2]
[402192278,1768582239754,-500.0,0.0001632,2]
[402192279,1768582239766,-502.05719094,0.0001632,2]
[402192280,1768582239775,-500.0,0.0001632,2]
[402192281,1768582239785,-500.0,0.00016321,2]
[402192282,1768582239795,-1000.0,0.00016321,2]
[402192283,1768582239807,-734.02633366,0.00016321,2]
[402192284,1768582239817,-956.95452403,0.00016321,2]
[402192285,1768582239827,-1001.94559639,0.00016321,2]
[402192286,1768582239837,-1000.0,0.00016321,2]
[402192287,1768582239847,-1000.0,0.00016321,2]
[402192288,1768582239857,-1000.0,0.00016321,2]
[402192289,1768582239866,-1000.0,0.00016321,2]
[402192290,1768582239876,-1000.0,0.00016321,2]
[402192291,1768582239885,-1000.74973973,0.00016321,2]
[402192292,1768582239895,-1000.0,0.00016321,2]
[402192293,1768582239907,-1101.14,0.00016321,2]
[402192294,1768582239917,-197.38,0.00016348,2]
[402192295,1768582239926,-299.56,0.00016359,2]
[402192296,1768582239938,-500.0,0.0001636,2]
[402192297,1768582239949,-468.57497061,0.0001636,2]
[402192298,1768582239958,-500.0,0.0001636,2]
[402192299,1768582239967,-500.0,0.0001636,2]
[402192300,1768582239977,-500.0,0.0001636,2]
[402192301,1768582239987,-500.0,0.0001636,2]
[402192302,1768582239996,-500.0,0.0001636,2]
[402192303,1768582240006,-500.0,0.0001636,2]
[402192304,1768582240016,-619.18454899,0.00016361,2]
[402192305,1768582240028,-500.0,0.00016361,2]
[402192306,1768582240038,-644.66158455,0.00016361,2]
[402192307,1768582240048,-507.08916018,0.00016361,2]
[402192308,1768582240058,-500.0,0.00016361,2]
[402192309,1768582240067,-500.0,0.00016361,2]
[402192310,1768582240077,-500.0,0.00016361,2]
[402192311,1768582240086,-500.0,0.00016361,2]
[402192312,1768582240096,-570.42395525,0.00016361,2]
[402192313,1768582240106,-500.0,0.00016361,2]
[402192314,1768582240115,-500.0,0.00016361,2]
[402192315,1768582240124,-500.0,0.00016361,2]
[402192316,1768582240133,-500.0,0.00016361,2]
[402192317,1768582240142,-2094.0,0.00016397,2]
[402192318,1768582240152,-19445.06014786,0.00016407,2]
[402192319,1768582240161,-506.27037057,0.00016434,2]
[402192322,1768582240171,-500.0,0.00016438,2]
[402192324,1768582240180,-500.0,0.00016438,2]
[402192325,1768582240190,-500.0,0.00016438,2]
[402192326,1768582240211,-500.0,0.00016438,2]
[402192327,1768582240222,-500.0,0.00016438,2]
[402192328,1768582240232,-500.0,0.00016438,2]
[402192329,1768582240241,-500.0,0.00016438,2]
[402192330,1768582240251,-500.0,0.00016438,2]
[402192331,1768582240262,-500.0,0.00016438,2]
[402192332,1768582240272,-500.0,0.00016438,2]
[402192333,1768582240281,-500.0,0.00016438,2]
[402192334,1768582240291,-500.0,0.00016438,2]
[402192335,1768582240301,-500.0,0.00016438,2]
[402192336,1768582240311,-500.0,0.00016438,2]
[402192337,1768582240321,-500.0,0.00016438,2]
[402192338,1768582240331,-500.0,0.00016438,2]
[402192339,1768582240341,-500.0,0.00016438,2]
[402192340,1768582240352,-500.0,0.00016438,2]
[402192341,1768582240362,-500.0,0.00016438,2]
[402192342,1768582240371,-500.0,0.00016438,2]
[402192343,1768582240381,-500.0,0.00016438,2]
[402192344,1768582240390,-500.0,0.00016438,2]
[402192345,1768582240400,-500.0,0.00016438,2]
[402192346,1768582240408,-500.0,0.00016438,2]
[402192347,1768582240418,-500.0,0.00016438,2]
[402192348,1768582240427,-500.0,0.00016438,2]
[402192349,1768582240437,-500.0,0.00016438,2]
[402192350,1768582240447,-500.0,0.00016438,2]
[402192351,1768582240457,-500.0,0.00016438,2]
[402192352,1768582240466,-500.0,0.00016438,2]
[402192353,1768582240475,-500.0,0.00016438,2]
[402192354,1768582240484,-500.0,0.00016438,2]
[402192355,1768582240495,-500.0,0.00016438,2]
[402192356,1768582240505,-500.0,0.00016438,2]
[402192357,1768582240515,-500.0,0.00016438,2]
[402192358,1768582240525,-500.0,0.00016438,2]
[402192359,1768582240533,-500.0,0.00016438,2]
[402192360,1768582240543,-500.0,0.00016438,2]
[402192361,1768582240553,-500.0,0.00016438,2]
[402192362,1768582240562,-500.0,0.00016438,2]
[402192363,1768582240572,-500.0,0.00016438,2]
[402192364,1768582240587,-500.0,0.00016438,2]
[402192365,1768582240597,-500.0,0.00016438,2]
[402192366,1768582240607,-500.0,0.00016438,2]
[402192367,1768582240616,-500.0,0.00016438,2]
[402192368,1768582240625,-500.0,0.00016438,2]
[402192369,1768582240637,-500.0,0.00016438,2]
[402192370,1768582240647,-500.0,0.00016438,2]
[402192371,1768582240657,-504.49613811,0.00016438,2]
[402192372,1768582240667,-500.0,0.00016438,2]
[402192373,1768582240676,-500.0,0.00016438,2]
[402192374,1768582240685,-500.0,0.00016438,2]
[402192375,1768582240694,-500.0,0.00016438,2]
[402192376,1768582240704,-500.0,0.00016438,2]
[402192377,1768582240713,-500.0,0.00016438,2]
[402192378,1768582240723,-500.0,0.00016438,2]
[402192379,1768582240732,-500.0,0.00016438,2]
[402192380,1768582240742,-500.0,0.00016438,2]
[402192381,1768582240751,-500.0,0.00016438,2]
[402192382,1768582240763,-500.0,0.00016438,2]
[402192383,1768582240773,-500.0,0.00016438,2]
[402192384,1768582240782,-500.0,0.00016438,2]
[402192385,1768582240792,-500.0,0.00016438,2]
[402192386,1768582240803,-500.0,0.00016438,2]
[402192387,1768582240813,-500.0,0.00016438,2]
[402192388,1768582240823,-500.0,0.00016438,2]
[402192389,1768582240833,-500.0,0.00016438,2]
[402192390,1768582240845,-500.0,0.00016438,2]
[402192391,1768582240855,-500.0,0.00016438,2]
[402192392,1768582240865,-500.0,0.00016438,2]
[402192393,1768582240876,-500.0,0.00016438,2]
[402192394,1768582240887,-500.0,0.00016438,2]
[402192395,1768582240897,-500.0,0.00016438,2]
[402192396,1768582240907,-500.0,0.00016438,2]
[402192397,1768582240916,-500.0,0.00016438,2]
[402192398,1768582240927,-500.0,0.00016438,2]
[402192399,1768582240937,-500.0,0.00016438,2]
[402192400,1768582240947,-500.0,0.00016438,2]
[402192401,1768582240959,-500.0,0.00016438,2]
[402192402,1768582240969,-500.0,0.00016438,2]
[402192403,1768582240979,-500.0,0.00016438,2]
[402192404,1768582240988,-500.0,0.00016438,2]
[402192405,1768582240997,-500.0,0.00016438,2]
[402192406,1768582241007,-500.0,0.00016438,2]
[402192407,1768582241016,-500.0,0.00016438,2]
[402192408,1768582241025,-500.0,0.00016438,2]
[402192409,1768582241037,-500.0,0.00016438,2]
[402192410,1768582241046,-499.99999999,0.00016438,2]
[402192411,1768582241056,-211.77117296,0.00016438,2]
[402192412,1768582241066,-165.04,0.0001644,2]
[402192413,1768582241076,-706.89082265,0.00016447,2]
[402192414,1768582241087,-500.0,0.00016486,2]
[402192415,1768582241096,-166.66,0.00016502,2]
[402192416,1768582241105,-510.0,0.00016512,2]
[402192417,1768582241115,-6336.39741243,0.00016541,2]
[402192418,1768582241125,-19445.06014786,0.00016593,2]
[402192419,1768582241134,-1101.14,0.00016595,2]
[402192420,1768582241144,-3023.81,0.00016637,2]
[402192421,1768582241154,-500.0,0.00016685,2]
[402192422,1768582241163,-1481.17,0.000167,2]
[402192423,1768582241172,-19445.06014786,0.0001678,2]
[402192424,1768582241182,-178.0,0.00016813,2]
[402192425,1768582241192,-300.0,0.00016818,2]
[402192426,1768582241201,-195.0,0.00016818,2]
[402192427,1768582241211,-2500.0,0.00016818,2]
[402192428,1768582241220,-300.0,0.00016818,2]
[402192429,1768582241230,-250.0,0.00016818,2]
[402192430,1768582241240,-193.0,0.00016818,2]
[402192431,1768582241250,-420.0,0.00016835,2]
[402192432,1768582241260,-420.0,0.00016845,2]
[402192433,1768582241270,-274.0,0.00016845,2]
[402192434,1768582241279,-500.0,0.00016851,2]
[402192435,1768582241289,-500.0,0.00016851,2]
[402192436,1768582241298,-1101.14,0.00016868,2]
[402192437,1768582241308,-1500.0,0.00016868,2]
[402192438,1768582241317,-1500.0,0.00016868,2]
[402192439,1768582241327,-1500.0,0.00016868,2]
[402192440,1768582241336,-1427.25960188,0.00016868,2]
[402192441,1768582241345,-1006.54498696,0.00016868,2]
[402192442,1768582241354,-1506.18752116,0.00016868,2]
[402192443,1768582241364,-1500.0,0.00016868,2]
[402192444,1768582241373,-217.0,0.00016882,2]
[402192445,1768582241382,-300.0,0.00016928,2]
[402192446,1768582241391,-250.0,0.00016928,2]
[402192447,1768582241400,-300.0,0.00016928,2]
[402192448,1768582241409,-300.0,0.00016928,2]
[402192449,1768582241419,-600.0,0.00016928,2]
[402192450,1768582241428,-300.0,0.00016928,2]
[402192451,1768582241437,-235.41949764,0.00016928,2]
[402192452,1768582241446,-195.0,0.00016928,2]
[402192453,1768582241455,-1680.0,0.0001693,2]
[402192454,1768582241464,-22661.82023826,0.00016934,2]
[402192455,1768582241473,-300.0,0.00016937,2]
[402192456,1768582241482,-250.0,0.00016938,2]
[402192457,1768582241492,-300.0,0.00016938,2]
[402192458,1768582241501,-195.0,0.00016938,2]
[402192459,1768582241510,-154.25,0.00016959,2]
[402192460,1768582241520,-19445.06014786,0.00016967,2]
[402192461,1768582241529,-594.61669288,0.00016989,2]
[402192462,1768582241538,-500.0,0.00016989,2]
[402192463,1768582241548,-250.0,0.00017,2]
[402192464,1768582241557,-166.66,0.00017013,2]
[402192465,1768582241566,-250.0,0.00017028,2]
[402192466,1768582241576,-500.0,0.00017034,2]
[402192467,1768582241585,-322.6107,0.00017099,2]
[402192468,1768582241595,-500.0,0.00017099,2]
[402192469,1768582241604,-174.61919142,0.00017099,2]
[402192470,1768582241614,-507.70133898,0.00017099,2]
[402192471,1768582241623,-500.0,0.00017099,2]
[402192472,1768582241632,-500.0,0.00017099,2]
[402192473,1768582241642,-574.12855637,0.00017099,2]
[402192474,1768582241652,-548.44734466,0.00017099,2]
[402192475,1768582241661,-250.0,0.00017099,2]
[402192476,1768582241671,-250.0,0.00017099,2]
[402192477,1768582241680,-500.0,0.00017099,2]
[402192478,1768582241689,-250.0,0.00017099,2]
[402192479,1768582241698,-500.0,0.00017099,2]
[402192480,1768582241707,-250.0,0.00017099,2]
[402192481,1768582241717,-500.0,0.00017099,2]
[402192482,1768582241726,-250.0,0.00017099,2]
[402192483,1768582241735,-500.0,0.00017099,2]
[402192484,1768582241745,-250.0,0.00017099,2]
[402192485,1768582241754,-1239.0,0.00017099,2]
[402192486,1768582241767,-500.0,0.00017099,2]
[402192487,1768582241777,-250.0,0.00017099,2]
[402192488,1768582241786,-500.0,0.00017099,2]
[402192489,1768582241795,-250.0,0.00017099,2]
[402192490,1768582241804,-250.0,0.00017099,2]
[402192491,1768582241814,-500.0,0.00017099,2]
[402192492,1768582242050,-250.0,0.00017099,2]
[402192493,1768582242060,-500.0,0.00017099,2]
[402192494,1768582242069,-306.14380651,0.00017099,2]
[402192495,1768582242079,-500.0,0.00017099,2]
[402192496,1768582242088,-250.0,0.00017099,2]
[402192497,1768582242097,-500.0,0.00017099,2]
[402192498,1768582242107,-500.0,0.00017099,2]
[402192499,1768582242118,-500.0,0.00017099,2]
[402192500,1768582242127,-500.0,0.00017099,2]
[402192501,1768582242136,-620.0,0.00017099,2]
[402192502,1768582242145,-500.0,0.00017099,2]
[402192503,1768582242155,-555.68208505,0.00017099,2]
[402192504,1768582242164,-1000.0,0.00017099,2]
[402192505,1768582242173,-250.0,0.00017099,2]
[402192506,1768582242183,-1000.0,0.00017099,2]
[402192507,1768582242193,-250.0,0.00017099,2]
[402192508,1768582242203,-1000.0,0.00017099,2]
[402192509,1768582242212,-250.0,0.00017099,2]
[402192510,1768582242221,-1000.0,0.00017099,2]
[402192511,1768582242230,-250.0,0.00017099,2]
[402192512,1768582242238,-1000.0,0.00017099,2]
[402192513,1768582242248,-2000.0,0.00017099,2]
[402192514,1768582242257,-250.0,0.00017099,2]
[402192515,1768582242266,-1000.0,0.00017099,2]
[402192516,1768582242275,-2000.0,0.00017099,2]
[402192517,1768582242284,-250.0,0.00017099,2]
[402192518,1768582242293,-2000.0,0.00017099,2]
[402192519,1768582242302,-1000.0,0.00017099,2]
[402192520,1768582242311,-250.0,0.00017099,2]
[402192521,1768582242321,-2000.0,0.00017099,2]
[402192522,1768582242331,-1000.0,0.00017099,2]
[402192523,1768582242341,-250.0,0.00017099,2]
[402192524,1768582242352,-1000.0,0.00017099,2]
[402192525,1768582242363,-250.0,0.00017099,2]
[402192526,1768582242372,-2000.0,0.00017099,2]
[402192527,1768582242381,-1000.0,0.00017099,2]
[402192528,1768582242390,-250.0,0.00017099,2]
[402192529,1768582242399,-2000.0,0.00017099,2]
[402192530,1768582242409,-1000.0,0.00017099,2]
[402192531,1768582242418,-250.0,0.00017099,2]
[402192532,1768582242428,-1500.0,0.00017099,2]
[402192533,1768582242437,-22661.82023826,0.00017127,2]
[402192534,1768582242447,-1101.14,0.00017142,2]
[402192535,1768582242456,-19445.06014786,0.00017153,2]
[402192536,1768582242465,-178.0,0.00017156,2]
[402192537,1768582242474,-150.0,0.00017157,2]
[402192538,1768582242484,-150.0,0.00017182,3]
[402192539,1768582242494,-403.16025657,0.00017198,2]
[402192540,1768582242503,-207.58974413,0.00017198,2]
[402192541,1768582242515,-150.0,0.00017205,2]
[402192542,1768582242525,-999.0,0.00017206,3]
[402192543,1768582242535,-168.0,0.00017307,2]
[402192544,1768582242544,-22404.4508288,0.0001732,2]
[402192548,1768582242915,-257.36940946,0.0001732,2]
[402192549,1768582242925,-228.06059224,0.0001734,2]
[402192559,1768582243680,-1.7e-07,0.0001734,2]
[402192560,1768582244414,-2891.9686647,0.0001734,2]
[402192561,1768582244425,-1224.799998,0.0001734,2]
[402192562,1768582244831,-462.28138314,0.0001734,2]
[402192569,1768582246271,-417.185001,0.0001734,2]
[402192570,1768582246284,-14220.76450861,0.0001734,2]
[402192571,1768582246295,-3219.2216,0.00017351,2]
[402192572,1768582246306,-315.85265333,0.00017359,2]
[402192573,1768582246315,-371.0,0.00017361,2]
[402192574,1768582246326,-1101.14,0.00017416,2]
[402192575,1768582246336,-2000.0,0.00017416,2]
[402192576,1768582246345,-2000.0,0.00017416,2]
[402192577,1768582246355,-1508.88161268,0.00017416,2]
[402192578,1768582246364,-2000.0,0.00017416,2]
[402192579,1768582246373,-500.0,0.00017429,2]
[402192580,1768582246382,-500.0,0.00017429,2]
[402192581,1768582246392,-526.00843551,0.00017429,2]
[402192582,1768582246401,-315.85265329,0.00017449,2]
[402192583,1768582246411,-150.0,0.0001745,2]
[402192584,1768582246420,-277.78078081,0.0001745,2]
[402192585,1768582246429,-1110.78417922,0.0001745,5]
[402192586,1768582246438,-178.88471166,0.0001745,5]
[402192587,1768582246447,-1110.78417922,0.0001745,5]
[402192588,1768582246456,-500.0,0.0001745,2]
[402192589,1768582246466,-500.0,0.0001745,2]
[402192590,1768582246475,-500.0,0.0001745,2]
[402192591,1768582246484,-500.0,0.0001745,2]
[402192592,1768582246494,-500.0,0.0001745,2]
[402192593,1768582246503,-546.67038325,0.0001745,2]
[402192594,1768582246513,-150.0,0.0001745,2]
[402192595,1768582246522,-150.0,0.00017453,2]
[402192596,1768582246532,-500.0,0.00017459,2]
[402192597,1768582246542,-476.71757168,0.00017459,2]
[402192598,1768582246552,-500.0,0.00017459,2]
[402192599,1768582246561,-561.486514,0.00017459,2]
[402192600,1768582246571,-241.25441779,0.00017459,2]
[402192601,1768582246580,-500.0,0.00017459,2]
[402192602,1768582246589,-383.49422028,0.00017459,2]
[402192603,1768582246599,-500.0,0.00017459,2]
[402192604,1768582246608,-410.83789791,0.00017459,2]
[402192605,1768582246618,-500.0,0.0001748,2]
[402192606,1768582246627,-1348.0,0.0001748,2]
[402192607,1768582246636,-507.0,0.0001748,2]
[402192608,1768582246646,-500.0,0.0001748,2]
[402192609,1768582246655,-150.0,0.0001748,2]
[402192610,1768582246666,-500.0,0.0001748,2]
[402192611,1768582246675,-483.0,0.0001748,2]
[402192612,1768582246685,-500.0,0.0001748,2]
[402192613,1768582246694,-1481.17,0.00017495,2]
[402192614,1768582246703,-2000.0,0.000175,2]
[402192615,1768582246713,-6949.10487379,0.00017514,2]
[402192616,1768582246725,-15712.71536447,0.00017514,2]
[402192617,1768582246735,-166.66,0.00017524,2]
[402192618,1768582246744,-5979.32288101,0.00017527,2]
[402192619,1768582246755,-13465.73726685,0.00017527,2]
[402192620,1768582246769,-500.0,0.00017535,2]
[402192621,1768582246778,-1348.0,0.00017535,2]
[402192622,1768582246787,-507.0,0.00017535,2]
[402192624,1768582246797,-500.0,0.00017535,2]
[402192625,1768582246807,-150.0,0.00017535,2]
[402192628,1768582246816,-500.0,0.00017535,2]
[402192630,1768582246825,-483.0,0.00017535,2]
[402192631,1768582246834,-500.0,0.00017535,2]
[402192632,1768582246844,-315.85265329,0.00017539,2]
[402192633,1768582246853,-197.38,0.00017554,2]
[402192634,1768582246862,-500.0,0.00017582,2]
[402192635,1768582246871,-500.0,0.0001759,2]
[402192636,1768582246880,-1348.0,0.0001759,2]
[402192637,1768582246890,-507.0,0.0001759,2]
[402192638,1768582246899,-500.0,0.0001759,2]
[402192639,1768582246908,-152.38385613,0.0001759,2]
[402192640,1768582246917,-500.0,0.0001759,2]
[402192641,1768582246926,-483.0,0.0001759,2]
[402192642,1768582246935,-500.0,0.0001759,2]
[402192643,1768582246946,-872.84693517,0.00017612,2]
[402192644,1768582246962,-299.56,0.00017629,2]
[402192645,1768582246971,-315.85265329,0.0001763,2]
[402192646,1768582246980,-662.05261865,0.0001764,2]
[402192647,1768582246990,-500.0,0.00017644,2]
[402192648,1768582246999,-1348.0,0.00017644,2]
[402192649,1768582247008,-507.0,0.00017644,2]
[402192650,1768582247017,-500.0,0.00017644,2]
[402192651,1768582247027,-500.0,0.00017644,2]
[402192652,1768582247036,-483.0,0.00017644,2]
[402192653,1768582247045,-508.05358587,0.00017644,2]
[402192654,1768582247055,-595.37131296,0.00017647,2]
[402192655,1768582247065,-150.0,0.00017667,3]
[402192656,1768582247075,-1101.18318247,0.0001769,2]
[402192657,1768582247084,-500.0,0.00017699,2]
[402192658,1768582247095,-1348.0,0.00017699,2]
[402192659,1768582247106,-507.0,0.00017699,2]
[402192660,1768582247116,-429.64452717,0.00017699,2]
[402192661,1768582247126,-500.0,0.00017699,2]
[402192662,1768582247136,-483.0,0.00017699,2]
[402192663,1768582247146,-22661.82023826,0.00017707,2]
[402192664,1768582247155,-866.0,0.00017712,2]
[402192665,1768582247164,-19445.06014786,0.00017713,2]
[402192666,1768582247174,-315.85265329,0.0001772,2]
[402192667,1768582247184,-1110.78417922,0.00017723,5]
[402192668,1768582247194,-1000.0,0.00017731,2]
[402192669,1768582247204,-502.64504125,0.00017732,2]
[402192670,1768582247213,-1000.0,0.00017734,2]
[402192671,1768582247223,-1000.0,0.00017734,2]
[402192672,1768582247232,-1000.0,0.0001774,2]
[402192673,1768582247242,-1000.0,0.00017747,2]
[402192674,1768582247252,-1000.0,0.00017748,2]
[402192675,1768582247261,-1000.0,0.00017752,2]
[402192676,1768582247272,-1348.0,0.00017754,2]
[402192677,1768582247281,-507.0,0.00017754,2]
[402192678,1768582247291,-609.06153597,0.00017754,2]
[402192679,1768582247303,-483.0,0.00017754,2]
[402192680,1768582247312,-150.0,0.00017755,2]
[402192681,1768582247322,-872.84693516,0.00017756,2]
[402192682,1768582247331,-1000.0,0.00017763,2]
[402192683,1768582247341,-1000.0,0.00017764,2]
[402192684,1768582247350,-1000.0,0.00017764,2]
[402192685,1768582247360,-1000.0,0.00017764,2]
[402192686,1768582247369,-150.0,0.00017776,2]
[402192687,1768582247378,-150.0,0.0001778,2]
[402192688,1768582247387,-1000.0,0.0001778,2]
[402192689,1768582247396,-1000.0,0.00017781,2]
[402192690,1768582247405,-1000.0,0.00017782,2]
[402192691,1768582247414,-1000.0,0.00017783,2]
[402192692,1768582247423,-1000.0,0.00017784,2]
[402192693,1768582247432,-3.56411529,0.00017793,2]
[402192694,1768582247444,-322.82219438,0.00017793,2]
[402192695,1768582247490,-673.61369033,0.00017793,2]
[402192696,1768582247499,-1000.0,0.00017794,2]
[402192697,1768582247508,-584.39664096,0.00017796,2]
[402192698,1768582247548,-415.60335904,0.00017796,2]
[402192699,1768582247560,-1000.0,0.00017799,2]
[402192700,1768582247569,-8305.29664096,0.000178,2]
[402192701,1768582256598,1000.0,0.00014977,2]
[402192702,1768582288543,164.0,0.0001425,2]
[402192703,1768582288815,164.675016,0.00015,2]
[402192704,1768582834201,-423.74283176,0.00015447,2]
[402192705,1768582927658,150.0,0.00014796,2]
[402192706,1768582939147,-475.43198559,0.00015331,2]
[402192707,1768582965261,2467.59,0.00015239,2]
[402192708,1768583075101,1600.0,0.00014684,2]
[402192709,1768583112025,200.0,0.00014632,2]
[402192710,1768583230662,1500.0,0.00014605,2]
[402192711,1768583286823,150.0,0.00014612,2]
[402192712,1768583350488,153.41,0.00014639,2]
[402192717,1768583432266,-278.0,0.00015409,2]
[402192718,1768583432276,-195.0,0.00015409,2]
[402192719,1768583432287,-300.0,0.00015409,2]
[402192720,1768583432296,-250.0,0.0001541,2]
[402192721,1768583432305,-300.0,0.0001541,2]
[402192722,1768583432314,-300.0,0.0001541,2]
[402192723,1768583432324,-300.0,0.0001541,2]
[402192724,1768583432333,-162.2358739,0.0001541,2]
[402192725,1768583432342,-300.0,0.00015413,2]
[402192726,1768583432351,-300.0,0.00015486,2]
[402192727,1768583432360,-300.0,0.00015486,2]
[402192728,1768583432369,-1200.0,0.00015486,2]
[402192729,1768583432379,-271.0,0.00015486,2]
[402192730,1768583432389,-300.0,0.00015486,2]